bitfinex/quotes_BTCUSD_20250303
["timestamp","ask_amount","ask_price","bid_price","bid_amount"]
[1740998753370,0.18214601,92553.0,92552.0,0.00456797]
[1740998754231,0.02007701,92553.0,92552.0,0.16663897]
[1740998754391,0.02007701,92553.0,92552.0,0.29495158]
[1740998754595,0.01695284,92553.0,92552.0,0.30797982]
[1740998754790,0.00817349,92577.0,92570.0,0.162039]
[1740998755034,0.010752,92577.0,92554.0,0.0015124]
[1740998755234,0.162035,92573.0,92554.0,0.0015124]
[1740998755431,0.472779,92577.0,92570.0,0.162039]
[1740998755706,0.310752,92577.0,92553.0,0.01454085]
[1740998755908,0.0003406,92561.0,92554.0,0.162067]
[1740998756107,0.0003406,92561.0,92553.0,0.01454085]
[1740998756325,0.162059,92559.0,92553.0,0.17660985]
[1740998756691,0.00304057,92558.0,92552.0,0.12736797]
[1740998756922,0.162069,92553.0,92552.0,0.00056797]
[1740998757356,0.00303748,92553.0,92552.0,0.00056797]
[1740998757581,0.01087039,92560.0,92552.0,0.00056797]
[1740998757809,0.162062,92557.0,92552.0,0.00056797]
[1740998758558,0.162069,92554.0,92552.0,0.00056797]
[1740998759243,0.17902111,92554.0,92552.0,0.00056797]
[1740998759711,0.17902111,92554.0,92552.0,0.00256797]
[1740998759886,0.17902111,92554.0,92552.0,0.00156797]
[1740998760067,0.01695211,92554.0,92552.0,0.00156797]
[1740998760267,0.01795211,92554.0,92552.0,0.00156797]
[1740998760493,0.01695211,92554.0,92552.0,0.00156797]
[1740998760889,0.01795211,92554.0,92552.0,0.00156797]
[1740998761288,0.01795211,92554.0,92552.0,0.16263797]
[1740998761489,0.01895211,92554.0,92552.0,0.16263797]
[1740998761896,0.01795211,92554.0,92552.0,0.00056797]
[1740998762098,0.01695211,92554.0,92552.0,0.00056797]
[1740998762295,0.01695211,92554.0,92552.0,0.00156797]
[1740998762532,0.01795211,92554.0,92552.0,0.16363797]
[1740998762692,0.01695211,92554.0,92552.0,0.16363797]
[1740998762897,0.17902011,92554.0,92552.0,0.00056797]
[1740998763115,0.17902011,92554.0,92552.0,0.00256797]
[1740998763522,0.17902011,92554.0,92552.0,0.00356797]
[1740998764561,0.17902011,92554.0,92552.0,0.00137921]
[1740998765351,0.01695211,92554.0,92552.0,0.00037921]
[1740998765648,0.001,92554.0,92552.0,0.00037921]
[1740998765884,0.163068,92554.0,92552.0,0.00037921]
[1740998766065,0.001,92554.0,92552.0,0.00037921]
[1740998766448,0.162067,92555.0,92552.0,0.00037921]
[1740998766629,0.001,92554.0,92552.0,0.00037921]
[1740998766826,0.164067,92554.0,92552.0,0.00037921]
[1740998767029,0.163067,92554.0,92552.0,0.00037921]
[1740998767231,0.163067,92554.0,92552.0,0.00137921]
[1740998767661,0.001,92554.0,92552.0,0.00137921]
[1740998767844,0.001,92554.0,92553.0,0.162069]
[1740998768462,0.001,92554.0,92552.0,0.00054951]
[1740998768664,0.001,92554.0,92553.0,0.162069]
[1740998768828,0.0003406,92555.0,92554.0,0.161067]
[1740998769028,0.0003406,92555.0,92554.0,0.30362036]
[1740998769228,0.0003406,92555.0,92554.0,0.30210785]
[1740998769445,0.0003406,92561.0,92555.0,0.31454085]
[1740998769689,0.08200722,92613.0,92570.0,0.462039]
[1740998769690,0.00024722,92613.0,92570.0,0.462039]
[1740998770005,0.00024722,92613.0,92570.0,0.60217985]
[1740998770205,0.01694426,92584.0,92570.0,0.60217985]
[1740998772145,0.0172867,92571.0,92570.0,0.30417985]
[1740998772482,0.0172867,92571.0,92570.0,0.30917985]
[1740998772679,0.0172867,92571.0,92570.0,0.31617985]
[1740998773365,0.0172867,92571.0,92570.0,0.02854085]
[1740998773561,0.0172867,92571.0,92570.0,0.014]
[1740998773765,0.0172867,92571.0,92569.0,0.16204]
[1740998773930,0.0172867,92571.0,92570.0,0.007]
[1740998775186,0.0172867,92571.0,92570.0,0.006]
[1740998775367,0.0172867,92571.0,92569.0,0.16204]
[1740998775564,0.0172867,92571.0,92570.0,0.007]
[1740998775727,0.0172867,92571.0,92570.0,0.013]
[1740998775728,0.0003406,92571.0,92570.0,0.013]
[1740998776339,0.0003406,92571.0,92570.0,0.006]
[1740998776983,0.1623786,92571.0,92563.0,0.01454085]
[1740998777203,0.0003406,92571.0,92569.0,0.162041]
[1740998777406,0.0003406,92571.0,92565.0,0.01454085]
[1740998777720,0.0003406,92571.0,92570.0,0.17657985]
[1740998777922,0.0003406,92571.0,92570.0,0.178092]
[1740998778509,0.0003406,92571.0,92570.0,0.181092]
[1740998778881,0.0003406,92571.0,92570.0,0.178092]
[1740998779234,0.01728676,92571.0,92570.0,0.185092]
[1740998779446,0.01728676,92571.0,92570.0,0.18357985]
[1740998779791,0.01728676,92571.0,92570.0,0.17657985]
[1740998780014,0.01728676,92571.0,92570.0,0.18757985]
[1740998780393,0.0151699,92571.0,92570.0,0.18757985]
[1740998781106,0.0155105,92571.0,92570.0,0.18757985]
[1740998781566,0.1775475,92571.0,92570.0,0.011]
[1740998781733,0.82734965,92571.0,92570.0,0.011]
[1740998782128,0.8095949,92571.0,92570.0,0.011]
[1740998782336,0.8095949,92571.0,92570.0,0.005]
[1740998782932,0.462053,92562.0,92536.0,0.00151275]
[1740998783091,0.462053,92562.0,92533.0,0.162102]
[1740998783268,0.462053,92562.0,92532.0,0.0001704]
[1740998783469,0.79674684,92562.0,92532.0,0.0001704]
[1740998784366,0.79974684,92562.0,92532.0,0.0001704]
[1740998784735,0.79674684,92562.0,92532.0,0.0001704]
[1740998786088,0.80774684,92562.0,92561.0,0.0011703]
[1740998787104,0.462069,92553.0,92532.0,0.0001704]
[1740998787253,0.346,92552.0,92532.0,0.0001704]
[1740998787453,0.462104,92533.0,92532.0,0.0001704]
[1740998788337,0.786204,92533.0,92532.0,0.0001704]
[1740998788547,0.92319816,92533.0,92532.0,0.0001704]
[1740998788698,0.35,92532.0,92531.0,0.0005704]
[1740998789099,0.3,92532.0,92531.0,0.0005704]
[1740998789852,0.306,92532.0,92531.0,0.0005704]
[1740998790007,0.3,92532.0,92531.0,0.0005704]
[1740998790217,0.307,92532.0,92531.0,0.0005704]
[1740998790408,0.313,92532.0,92531.0,0.0005704]
[1740998790617,0.307,92532.0,92531.0,0.0005704]
[1740998790819,0.007,92532.0,92508.0,0.216197]
[1740998791062,0.007,92532.0,92506.0,0.01605406]
[1740998791228,0.162121,92524.0,92515.0,0.162135]
[1740998791428,0.16212,92524.0,92508.0,0.216197]
[1740998791641,0.162132,92517.0,92508.0,0.162146]
[1740998792059,0.162131,92518.0,92509.0,0.162145]
[1740998792276,0.01695875,92521.0,92506.0,0.01454085]
[1740998792452,0.01695875,92521.0,92520.0,0.162127]
[1740998793695,0.01695875,92521.0,92520.0,0.17666785]
[1740998793938,0.01795875,92521.0,92520.0,0.17666785]
[1740998794930,0.01795875,92521.0,92520.0,0.25366785]
[1740998795171,0.01795875,92521.0,92520.0,0.30026785]
[1740998795370,0.01795875,92521.0,92520.0,0.60026785]
[1740998795517,0.001,92521.0,92520.0,0.60026785]
[1740998795741,0.002,92521.0,92520.0,0.61116299]
[1740998796175,0.01059384,92562.0,92521.0,0.3]
[1740998796380,0.3,92560.0,92522.0,0.01354085]
[1740998796614,0.001,92521.0,92520.0,0.59662214]
[1740998797029,0.001,92521.0,92520.0,0.29662214]
[1740998798542,0.21612,92541.0,92530.0,0.01454085]
[1740998798695,0.21612,92541.0,92521.0,0.01454085]
[1740998798696,0.3,92554.0,92521.0,0.216167]
[1740998798899,0.3,92554.0,92522.0,0.162123]
[1740998799097,0.162095,92539.0,92525.0,0.162117]
[1740998799303,0.01695486,92556.0,92521.0,0.00151292]
[1740998799304,0.3,92546.0,92521.0,0.00151292]
[1740998799576,0.00100005,92545.0,92521.0,0.01454085]
[1740998799755,0.31695486,92556.0,92520.0,0.1246]
[1740998799756,0.162092,92540.0,92530.0,0.162108]
[1740998799955,0.00100005,92539.0,92524.0,0.216159]
[1740998800158,0.17904984,92538.0,92525.0,0.001]
[1740998800358,0.00100005,92537.0,92525.0,0.001]
[1740998800695,0.00100005,92537.0,92528.0,0.162112]
[1740998800835,0.00100005,92537.0,92529.0,0.162111]
[1740998801041,0.00100005,92537.0,92525.0,0.001]
[1740998801460,0.00100005,92537.0,92531.0,0.162106]
[1740998801655,0.00100005,92537.0,92521.0,0.002]
[1740998801863,0.01259144,92538.0,92533.0,0.162103]
[1740998802065,0.01259144,92538.0,92524.0,0.002]
[1740998802264,0.01259144,92538.0,92529.0,0.002]
[1740998802486,0.162102,92535.0,92522.0,0.216163]
[1740998802804,0.01259144,92538.0,92531.0,0.002]
[1740998803145,0.01259144,92538.0,92520.0,0.1236]
[1740998803365,0.01259144,92538.0,92535.0,0.162099]
[1740998803982,0.01259144,92538.0,92535.0,0.1621]
[1740998804225,0.01259144,92538.0,92532.0,0.216139]
[1740998804427,0.01259144,92538.0,92537.0,0.162097]
[1740998804962,0.01259144,92538.0,92537.0,0.244997]
[1740998805094,0.0003408,92545.0,92544.0,0.17662585]
[1740998805290,8e-07,92545.0,92544.0,0.56103817]
[1740998805640,8e-07,92545.0,92544.0,0.88662585]
[1740998806180,8e-07,92545.0,92544.0,0.88962585]
[1740998806581,8e-07,92545.0,92544.0,0.88562585]
[1740998807673,8e-07,92545.0,92544.0,0.93372585]
[1740998807974,0.09737454,92579.0,92544.0,0.93372585]
[1740998807975,0.09737454,92579.0,92570.0,0.162039]
[1740998808172,0.09737454,92579.0,92570.0,0.243339]
[1740998808371,0.01728701,92571.0,92570.0,0.242339]
[1740998808953,0.01728701,92571.0,92570.0,0.30297985]
[1740998809119,0.01768567,92571.0,92570.0,0.31299488]
[1740998809729,0.01968567,92571.0,92570.0,0.32499488]
[1740998811573,0.01968567,92571.0,92570.0,0.31045403]
[1740998811978,0.01968567,92571.0,92570.0,0.299439]
[1740998812196,0.01968567,92571.0,92570.0,0.170039]
[1740998813183,0.01968567,92571.0,92570.0,0.17155122]
[1740998813836,0.01968567,92571.0,92570.0,0.170039]
[1740998815726,0.00273926,92571.0,92570.0,0.170039]
[1740998816346,0.00273926,92571.0,92570.0,0.17155121]
[1740998818340,0.00173926,92571.0,92570.0,0.15955121]
[1740998818684,0.00173926,92571.0,92570.0,0.16655121]
[1740998818824,0.00273926,92571.0,92570.0,0.17255121]
[1740998819026,0.00273926,92571.0,92570.0,0.165039]
[1740998819228,0.00173926,92571.0,92570.0,0.158039]
[1740998819427,0.00373926,92571.0,92570.0,0.172039]
[1740998820195,0.00373926,92571.0,92570.0,0.25505115]
[1740998820349,0.00373926,92571.0,92570.0,0.26807985]
[1740998821553,0.00273926,92571.0,92570.0,0.26107985]
[1740998821748,0.00073926,92571.0,92570.0,0.25407985]
[1740998821936,0.00173926,92571.0,92570.0,0.25807985]
[1740998822161,0.00273926,92571.0,92570.0,0.26507985]
[1740998822359,0.00173926,92571.0,92570.0,0.25407985]
[1740998822617,0.00073926,92571.0,92570.0,0.25407985]
[1740998822824,0.00273926,92571.0,92570.0,0.26507985]
[1740998823409,2.6e-07,92571.0,92570.0,0.93767985]
[1740998823776,2.6e-07,92571.0,92570.0,0.98767985]
[1740998824529,2.6e-07,92571.0,92570.0,0.98367985]
[1740998824735,0.01694446,92596.0,92595.0,0.161995]
[1740998824941,0.01706404,92596.0,92595.0,0.161995]
[1740998825141,0.00011958,92596.0,92595.0,0.161995]
[1740998825695,0.00011958,92596.0,92595.0,0.16350668]
[1740998826104,0.00011958,92596.0,92595.0,0.17250668]
[1740998826329,0.00011958,92596.0,92595.0,0.18361903]
[1740998826908,0.00011958,92596.0,92595.0,0.18361902]
[1740998827130,0.00011958,92596.0,92595.0,0.24385987]
[1740998827954,0.00011958,92596.0,92595.0,0.86195987]
[1740998828158,5.8e-07,92596.0,92595.0,0.8664482]
[1740998828362,5.8e-07,92596.0,92595.0,0.8734482]
[1740998828937,5.8e-07,92596.0,92595.0,0.8664482]
[1740998829324,0.00034118,92596.0,92595.0,0.8734482]
[1740998829525,0.00034118,92596.0,92595.0,0.8674482]
[1740998830578,0.00034118,92596.0,92595.0,0.63958735]
[1740998830784,0.00034118,92596.0,92595.0,0.64658735]
[1740998830984,0.00034118,92596.0,92595.0,0.6611282]
[1740998833294,0.00034118,92596.0,92595.0,0.55990735]
[1740998833507,0.00034118,92596.0,92595.0,0.51420735]
[1740998834335,0.00034118,92596.0,92595.0,0.5217482]
[1740998834537,1.8e-07,92596.0,92595.0,0.8750482]
[1740998834744,1.8e-07,92596.0,92595.0,0.8680482]
[1740998834929,1.8e-07,92596.0,92595.0,1.4618482]
[1740998835264,1.8e-07,92596.0,92595.0,1.4688482]
[1740998835608,1.8e-07,92596.0,92595.0,1.4618482]
[1740998836561,1.8e-07,92596.0,92595.0,1.4548482]
[1740998836943,1.8e-07,92596.0,92595.0,1.4118482]
[1740998837151,1.8e-07,92596.0,92595.0,1.4688482]
[1740998837375,1.8e-07,92596.0,92595.0,1.4548482]
[1740998837600,1.8e-07,92596.0,92595.0,1.4048482]
[1740998837779,1.8e-07,92596.0,92595.0,1.4618482]
[1740998837979,1.8e-07,92596.0,92595.0,1.4188482]
[1740998839774,0.01252797,92626.0,92618.0,0.215939]
[1740998839942,0.01252797,92626.0,92596.0,0.33852885]
[1740998839943,0.161953,92619.0,92596.0,0.3]
[1740998840143,0.161953,92619.0,92595.0,0.39851235]
[1740998840144,0.00011958,92626.0,92595.0,0.35221235]
[1740998840346,0.215924,92625.0,92613.0,0.161964]
[1740998840653,0.00011958,92626.0,92600.0,0.215981]
[1740998840849,0.00011958,92626.0,92607.0,0.161973]
[1740998841111,0.00011958,92626.0,92618.0,0.005]
[1740998841112,0.161953,92619.0,92618.0,0.005]
[1740998841442,0.083,92625.0,92595.0,0.164995]
[1740998841643,0.083,92625.0,92597.0,0.161991]
[1740998841847,0.215962,92609.0,92600.0,0.001]
[1740998842046,0.215946,92616.0,92600.0,0.001]
[1740998842270,0.083,92625.0,92588.0,0.01109683]
[1740998842471,0.3,92621.0,92590.0,0.17956896]
[1740998842683,0.3,92621.0,92585.0,0.3271]
[1740998842684,0.3,92619.0,92592.0,0.216001]
[1740998842857,0.3,92617.0,92611.0,0.161966]
[1740998843063,0.01694127,92614.0,92612.0,0.161965]
[1740998843271,0.01694127,92614.0,92600.0,0.002]
[1740998843571,0.17890327,92614.0,92607.0,0.161974]
[1740998843762,0.161982,92603.0,92596.0,0.161993]
[1740998844104,0.161986,92601.0,92594.0,0.161995]
[1740998844407,0.09119797,92625.0,92575.0,0.31625985]
[1740998844408,0.01694207,92602.0,92583.0,0.01086567]
[1740998844605,0.161995,92596.0,92588.0,0.162007]
[1740998844905,0.0794,92603.0,92585.0,0.162012]
[1740998845070,0.0794,92603.0,92571.0,0.3271]
[1740998845071,0.0794,92603.0,92577.0,0.00151195]
[1740998845274,0.161985,92602.0,92595.0,0.161995]
[1740998845434,0.161985,92602.0,92595.0,0.161994]
[1740998845637,0.01090667,92602.0,92596.0,0.161993]
[1740998845838,0.0794,92603.0,92597.0,0.161992]
[1740998846136,0.0794,92603.0,92599.0,0.161988]
[1740998846338,0.0794,92603.0,92597.0,0.16199]
[1740998846535,0.0794,92603.0,92594.0,0.007]
[1740998846738,0.0794,92603.0,92577.0,0.216034]
[1740998846962,0.0794,92603.0,92586.0,0.00011958]
[1740998847240,0.162009,92587.0,92586.0,0.00011958]
[1740998849034,0.47312084,92587.0,92586.0,0.00011958]
[1740998849307,0.60562084,92587.0,92586.0,0.00011958]
[1740998849449,0.92972084,92587.0,92586.0,0.00011958]
[1740998850088,0.92972084,92587.0,92586.0,0.00311958]
[1740998850305,0.92972084,92587.0,92586.0,0.00511958]
[1740998850532,0.92972084,92587.0,92586.0,0.00211958]
[1740998850851,0.93272084,92587.0,92586.0,0.00211958]
[1740998851066,0.93272084,92587.0,92586.0,0.00011958]
[1740998851273,0.92972084,92587.0,92586.0,0.00011958]
[1740998851527,0.7576,92587.0,92586.0,0.00011958]
[1740998851702,0.7586,92587.0,92586.0,0.00011958]
[1740998852158,0.7596,92587.0,92586.0,0.00011958]
[1740998852512,0.7596,92587.0,92586.0,0.00028988]
[1740998852891,0.93268781,92587.0,92586.0,0.00028988]
[1740998853241,0.77067881,92587.0,92586.0,0.00028988]
[1740998853679,0.93268781,92587.0,92586.0,0.00028988]
[1740998854684,0.94963548,92587.0,92586.0,0.00028988]
[1740998856210,0.93268781,92587.0,92586.0,0.00028988]
[1740998859245,0.94963604,92587.0,92586.0,0.00028988]
[1740998860080,0.65512704,92587.0,92586.0,0.00028988]
[1740998860256,0.64404823,92587.0,92586.0,0.00028988]
[1740998860807,0.31894823,92587.0,92586.0,0.00028988]
[1740998860980,0.31694823,92587.0,92586.0,0.00028988]
[1740998861485,0.31894823,92587.0,92586.0,0.00028988]
[1740998861693,0.01894823,92587.0,92586.0,0.16230088]
[1740998862679,0.01694823,92587.0,92586.0,0.16230088]
[1740998863093,0.01794823,92587.0,92586.0,0.16230088]
[1740998863707,0.01694823,92587.0,92586.0,0.16230088]
[1740998864125,0.01694823,92587.0,92586.0,0.16381285]
[1740998864969,0.01694823,92587.0,92586.0,0.16530088]
[1740998865183,0.0003406,92596.0,92595.0,0.161995]
[1740998866396,0.0003406,92596.0,92595.0,0.17416246]
[1740998866622,0.0003406,92596.0,92595.0,0.17716246]
[1740998867142,0.0003406,92596.0,92595.0,0.25706246]
[1740998867295,0.0003406,92596.0,92595.0,0.25255071]
[1740998867497,0.0003406,92596.0,92595.0,0.30105071]
[1740998867750,0.0003406,92596.0,92595.0,0.30405071]
[1740998868145,0.0003406,92596.0,92595.0,0.61859156]
[1740998868772,0.0003406,92596.0,92595.0,0.62259156]
[1740998869573,0.0003406,92596.0,92595.0,0.94569156]
[1740998869780,0.0003406,92596.0,92595.0,0.94269156]
[1740998869934,0.0003406,92596.0,92595.0,0.94969156]
[1740998870345,0.0003406,92596.0,92595.0,0.94569156]
[1740998870553,0.0003406,92596.0,92595.0,0.95269156]
[1740998871796,0.0003406,92596.0,92595.0,0.95969156]
[1740998871998,0.0003406,92596.0,92595.0,0.94515071]
[1740998873279,0.0003406,92596.0,92595.0,0.64515071]
[1740998874975,0.0003406,92596.0,92595.0,0.51675071]
[1740998875622,0.0003406,92596.0,92595.0,0.18965071]
[1740998875820,0.0003406,92596.0,92595.0,0.17965071]
[1740998876021,0.0003406,92596.0,92595.0,0.17265071]
[1740998876225,0.0003406,92596.0,92595.0,0.18116239]
[1740998876430,0.0003406,92596.0,92595.0,0.18816239]
[1740998877802,0.0003406,92596.0,92595.0,0.18850279]
[1740998878561,0.0003406,92596.0,92595.0,0.27824364]
[1740998878775,0.0003406,92596.0,92595.0,0.62383196]
[1740998879533,0.0003406,92596.0,92595.0,0.95093196]
[1740998881677,0.0003406,92596.0,92595.0,0.93639111]
[1740998882161,0.0003406,92596.0,92595.0,0.95093196]
[1740998883623,0.0003406,92596.0,92595.0,0.51409111]
[1740998884405,0.0003406,92596.0,92595.0,0.17999111]
[1740998884736,0.0003406,92596.0,92595.0,0.18699111]
[1740998885137,0.0003406,92596.0,92595.0,0.17299111]
[1740998885283,0.0003406,92596.0,92595.0,0.1623354]
[1740998885484,0.0003406,92596.0,92595.0,0.1693354]
[1740998885784,0.0003406,92596.0,92595.0,0.1763354]
[1740998885999,0.0003406,92596.0,92595.0,0.18027227]
[1740998886210,0.0003406,92596.0,92595.0,0.1623354]
[1740998886516,0.0003406,92596.0,92595.0,0.17825273]
[1740998886720,0.0003406,92596.0,92595.0,0.17976453]
[1740998887344,0.0003406,92596.0,92595.0,0.18676453]
[1740998888134,0.0003406,92596.0,92595.0,0.60340538]
[1740998888331,0.0003406,92596.0,92595.0,0.60189358]
[1740998888531,6e-07,92596.0,92595.0,0.90189358]
[1740998890362,6e-07,92596.0,92595.0,0.88735273]
[1740998892214,6e-07,92596.0,92595.0,0.88989358]
[1740998892413,6e-07,92603.0,92602.0,0.461983]
[1740998892584,6e-07,92603.0,92602.0,0.55776385]
[1740998893739,6e-07,92603.0,92602.0,0.56376385]
[1740998894098,0.0169394,92619.0,92618.0,0.161955]
[1740998894298,0.0001702,92626.0,92618.0,0.28796622]
[1740998894501,0.0001702,92626.0,92625.0,0.161943]
[1740998894701,0.0001702,92626.0,92625.0,0.16345418]
[1740998895435,0.00028978,92626.0,92625.0,0.18350659]
[1740998896237,0.00028978,92626.0,92625.0,0.18650659]
[1740998896537,0.00028978,92626.0,92625.0,0.18199541]
[1740998896687,0.00028978,92626.0,92625.0,0.18899541]
[1740998896888,0.00028978,92626.0,92625.0,0.19299541]
[1740998897582,0.00028978,92626.0,92625.0,0.19050669]
[1740998898062,0.00028978,92626.0,92625.0,0.19750669]
[1740998898482,0.00028978,92626.0,92625.0,0.17745428]
[1740998900833,0.00028978,92626.0,92625.0,0.175943]
[1740998904456,0.00028978,92626.0,92625.0,0.19595798]
[1740998907263,0.00028978,92626.0,92625.0,0.29209883]
[1740998909788,7.8e-07,92626.0,92625.0,1.04597883]
[1740998909988,7.8e-07,92638.0,92632.0,0.01454085]
[1740998910186,7.8e-07,92638.0,92637.0,0.47646285]
[1740998911510,7.8e-07,92638.0,92637.0,0.49647783]
[1740998911897,7.8e-07,92638.0,92637.0,0.50347783]
[1740998912864,7.8e-07,92638.0,92637.0,0.51047783]
[1740998914207,7.8e-07,92638.0,92637.0,0.96257783]
[1740998917618,7.8e-07,92638.0,92637.0,0.91727783]
[1740998917805,7.8e-07,92638.0,92637.0,0.82303698]
[1740998918406,7.8e-07,92638.0,92637.0,0.52303698]
[1740998918849,7.8e-07,92638.0,92637.0,0.19593698]
[1740998919565,7.8e-07,92638.0,92637.0,0.175922]
[1740998919740,7.8e-07,92638.0,92637.0,0.161922]
[1740998920172,7.8e-07,92638.0,92637.0,0.168922]
[1740998921155,7.8e-07,92638.0,92637.0,0.007]
[1740998921535,7.8e-07,92638.0,92637.0,0.014]
[1740998922334,7.8e-07,92638.0,92637.0,0.161922]
[1740998922485,7.8e-07,92638.0,92637.0,0.165922]
[1740998922691,7.8e-07,92638.0,92637.0,0.168922]
[1740998923293,7.8e-07,92638.0,92637.0,0.164922]
[1740998923693,7.8e-07,92638.0,92637.0,0.16643315]
[1740998924516,7.8e-07,92638.0,92637.0,0.560574]
[1740998924696,6e-08,92645.0,92644.0,0.16191]
[1740998924909,6e-08,92645.0,92644.0,0.17796152]
[1740998925333,6e-08,92645.0,92644.0,0.47796152]
[1740998925522,6e-08,92645.0,92644.0,0.47645085]
[1740998925715,6e-08,92645.0,92644.0,0.80355085]
[1740998925915,6e-08,92645.0,92644.0,0.81055085]
[1740998926117,6e-08,92645.0,92644.0,0.83056583]
[1740998926379,6e-08,92645.0,92644.0,0.83756583]
[1740998926725,6e-08,92645.0,92644.0,0.83056583]
[1740998927618,6e-08,92645.0,92644.0,0.84145801]
[1740998928286,6e-08,92645.0,92644.0,0.84845801]
[1740998928459,6e-08,92645.0,92644.0,0.84145801]
[1740998928661,6e-08,92645.0,92644.0,0.83445801]
[1740998929065,8.6e-07,92648.0,92646.0,0.01454085]
[1740998929268,8.6e-07,92648.0,92647.0,0.60855543]
[1740998929455,8.6e-07,92648.0,92647.0,0.60704485]
[1740998930435,8.6e-07,92648.0,92647.0,0.62705983]
[1740998931557,8.6e-07,92648.0,92647.0,0.63405983]
[1740998931858,8.6e-07,92648.0,92647.0,0.64105983]
[1740998932262,8.6e-07,92648.0,92647.0,0.63405983]
[1740998932467,8.6e-07,92648.0,92647.0,0.64105983]
[1740998933910,8.6e-07,92648.0,92647.0,0.49591898]
[1740998934132,8.6e-07,92648.0,92647.0,0.57503898]
[1740998934292,8.6e-07,92648.0,92647.0,0.555024]
[1740998935018,8.6e-07,92648.0,92647.0,0.89666485]
[1740998936437,8.6e-07,92648.0,92647.0,0.503004]
[1740998937439,8.6e-07,92648.0,92647.0,0.489004]
[1740998937781,8.6e-07,92648.0,92647.0,0.500004]
[1740998937990,8.6e-07,92648.0,92647.0,0.495004]
[1740998938111,8.6e-07,92648.0,92647.0,0.50954485]
[1740998938462,8.6e-07,92648.0,92647.0,0.495004]
[1740998938819,0.291405,92677.0,92647.0,0.3331]
[1740998939033,0.00011956,92659.0,92658.0,0.161885]
[1740998941113,0.00011956,92659.0,92658.0,0.164885]
[1740998941315,0.00011956,92659.0,92658.0,0.16639586]
[1740998941866,0.00011956,92659.0,92658.0,0.17039586]
[1740998943469,0.00011956,92659.0,92658.0,0.16639586]
[1740998943915,0.00011956,92659.0,92658.0,0.17339586]
[1740998944075,0.00011956,92659.0,92658.0,0.17039586]
[1740998944269,0.00011956,92659.0,92658.0,0.16339586]
[1740998944470,0.00011956,92659.0,92658.0,0.168885]
[1740998944688,0.00011956,92659.0,92658.0,0.175885]
[1740998947082,5.6e-07,92659.0,92658.0,0.96984108]
[1740998947253,5.6e-07,92659.0,92658.0,0.98287109]
[1740998947458,0.0003406,92689.0,92688.0,0.161833]
[1740998947811,0.00073904,92689.0,92688.0,0.1633432]
[1740998948421,0.00073904,92689.0,92688.0,0.161833]
[1740998949215,0.00073904,92689.0,92688.0,0.162833]
[1740998949974,0.00073904,92689.0,92688.0,0.167833]
[1740998950321,0.01766575,92689.0,92688.0,0.167833]
[1740998950519,0.01766575,92689.0,92688.0,0.166833]
[1740998950963,0.01766575,92689.0,92688.0,0.170833]
[1740998952222,0.01766575,92689.0,92688.0,0.009]
[1740998952833,0.01766575,92689.0,92688.0,0.170833]
[1740998953874,0.01766575,92689.0,92688.0,0.009]
[1740998954529,0.17949675,92689.0,92688.0,0.009]
[1740998955699,0.58877004,92689.0,92688.0,0.009]
[1740998956536,0.91287004,92689.0,92688.0,0.004]
[1740998956845,0.3,92688.0,92671.0,0.161861]
[1740998957164,0.161849,92679.0,92660.0,0.215842]
[1740998957359,0.16185,92679.0,92672.0,0.16186]
[1740998957554,0.161847,92680.0,92662.0,0.215838]
[1740998957758,0.3,92688.0,92671.0,0.215817]
[1740998957954,0.45103904,92689.0,92672.0,0.161861]
[1740998957955,0.161849,92679.0,92672.0,0.161861]
[1740998958163,0.215793,92682.0,92671.0,0.215817]
[1740998958369,0.161848,92680.0,92673.0,0.161858]
[1740998958561,0.161849,92679.0,92673.0,0.161858]
[1740998958921,0.3,92688.0,92662.0,0.001]
[1740998959121,0.161876,92663.0,92662.0,0.001]
[1740998959768,0.215826,92667.0,92662.0,0.001]
[1740998959921,0.3,92683.0,92646.0,0.215873]
[1740998960124,0.3,92683.0,92671.0,0.001]
[1740998960324,0.539461,92672.0,92671.0,0.001]
[1740998960529,0.161883,92659.0,92645.0,0.215877]
[1740998960737,0.161883,92659.0,92632.0,0.02000571]
[1740998960738,0.161883,92659.0,92641.0,0.215885]
[1740998960927,0.161883,92659.0,92632.0,0.03067195]
[1740998961274,0.161883,92659.0,92632.0,0.02000571]
[1740998961275,0.543283,92659.0,92632.0,0.02000571]
[1740998961430,0.543283,92659.0,92641.0,0.161915]
[1740998961636,0.543283,92659.0,92639.0,0.215891]
[1740998961828,0.56021821,92659.0,92635.0,0.2159]
[1740998962064,0.56021821,92659.0,92658.0,0.0013404]
[1740998963285,0.56021821,92659.0,92658.0,0.0033404]
[1740998963427,0.39833521,92659.0,92658.0,0.0023404]
[1740998963632,0.39833521,92659.0,92658.0,0.0003404]
[1740998963826,0.39833521,92659.0,92658.0,0.0013404]
[1740998964055,0.56021821,92659.0,92658.0,0.0023404]
[1740998966407,0.39833521,92659.0,92658.0,0.0023404]
[1740998966751,0.3814,92659.0,92658.0,0.0023404]
[1740998967630,0.543283,92659.0,92658.0,0.0023404]
[1740998967950,0.3241,92662.0,92658.0,0.0023404]
[1740998967951,0.3241,92662.0,92661.0,0.16188]
[1740998969040,0.3241,92662.0,92658.0,0.0023404]
[1740998969413,0.485978,92662.0,92658.0,0.0013404]
[1740998969640,0.3241,92662.0,92658.0,0.0013404]
[1740998969823,0.34103416,92662.0,92658.0,0.0003404]
[1740998970237,0.161883,92659.0,92658.0,0.0003404]
[1740998970441,0.241583,92659.0,92658.0,0.0003404]
[1740998971323,0.541583,92659.0,92658.0,0.0003404]
[1740998971537,0.541583,92659.0,92658.0,0.0013404]
[1740998971743,0.541583,92659.0,92658.0,0.0023404]
[1740998972443,0.34103416,92662.0,92658.0,0.0023404]
[1740998972642,0.34103416,92662.0,92661.0,0.16188]
[1740998974700,0.01693416,92662.0,92661.0,0.16188]
[1740998974899,0.01130186,92665.0,92664.0,0.161875]
[1740998975048,0.3241,92688.0,92658.0,0.0003404]
[1740998975248,0.00039844,92688.0,92660.0,0.17968432]
[1740998975471,0.00039844,92688.0,92687.0,0.161834]
[1740998975885,0.00039844,92688.0,92687.0,0.134834]
[1740998976940,0.00339844,92688.0,92687.0,0.134834]
[1740998977142,0.00539844,92688.0,92687.0,0.134834]
[1740998978187,0.02232652,92688.0,92687.0,0.134834]
[1740998983278,0.01932652,92688.0,92687.0,0.134834]
[1740998983479,0.01732652,92688.0,92683.0,0.161841]
[1740998983621,0.02032652,92688.0,92685.0,0.161837]
[1740998983975,0.02049672,92688.0,92687.0,0.002]
[1740998984176,0.01749672,92688.0,92687.0,0.161834]
[1740998984405,0.01749672,92688.0,92687.0,0.168834]